[Event "Swedish Championship 2022"]
[Site "Uppsala"]
[Date "2022.07.07"]
[Round "6.1"]
[White "Westerberg, Jonathan"]
[Black "Johansson, Linus"]
[Result "1/2-1/2"]
[ECO "A13"]
[WhiteElo "2476"]
[BlackElo "2468"]
[Annotator "TA"]
[PlyCount "105"]
[EventDate "2022.07.01"]
[EventType "tourn"]
[EventCountry "SWE"]
[SourceTitle "playchess.com"]
[Source "ChessBase"]
[SourceQuality "1"]
[TimeControl "40/5400+30:1800+30"]

{[%evp 14,105,14,10,0,6,0,-2,0,-26,6,0,0,0,0,-35,-20,-48,-51,-49,0,0,0,0,9,6,19,8,0,6,16,0,0,0,0,0,0,0,0,0,0,0,0,-7,27,17,39,22,25,2,2,0,0,0,0,0,0,0,65,66,65,40,32,32,65,40,57,46,51,15,15,0,0,0,0,0,0,0,0,0,0,0,0,0,0,0,0,0,0,0,0,0,0,0]} 1. Nf3 {[%emt 0:00:04]} d5 {[%emt 0:00:16]} 2. c4 {[%emt 0:00:06]} e6 {[%emt 0:00:06]} 3. g3 {[%emt 0:00:03]} Nf6 {[%emt 0:00:08]} 4. Bg2 {[%emt 0:00:05]} d4 {[%emt 0:00:24]} 5. O-O {[%emt 0:00:53]} c5 {[%emt 0:00:04]} 6. e3 {[%emt 0:00:38]} Nc6 {[%emt 0:00:07]} 7. exd4 {[%emt 0:00:37]} cxd4 {[%emt 0:00:07]} 8. d3 {[%emt 0:00:03]} Bd6 {[%emt 0:00:23] A13: English Opening: 1...e6.} 9. Na3 {[%emt 0:02:00]} O-O {[%emt 0:03:28]} 10. Nc2 {[%emt 0:00:04]} e5 {[%emt 0:01:42]} 11. Rb1 {[%emt 0:07:15] [#]} (11. b4 $5) 11... Rb8 $146 {[%emt 0:05:42]} ({Predecessor:} 11... a5 12. a3 a4 13. b4 axb3 14. Rxb3 Nd7 15. Rb5 Nc5 16. Re1 Bf5 17. Bf1 h6 {½-½ (24) Andriasian,Z (2609)-Bok,B (2572) Groningen 2014}) 12. Bg5 {[%emt 0:02:43]} h6 {[%emt 0:03:14]} 13. Bxf6 {[%emt 0:00:27]} Qxf6 {[%emt 0:00:06]} 14. b4 {[%emt 0:00:39]} Bg4 {[%emt 0:05:29][%cal Bc8g4,Bg4h5,Bh5g6,Bg6e4][%mdl 32]} 15. a3 {[%emt 0:08:00]} Rbd8 {[%emt 0:12:55]} 16. Nce1 {[%emt 0:03:40]} e4 {[%emt 0:23:15]} (16... Bb8 $15) 17. dxe4 $11 {[%emt 0:01:25]} d3 {[%emt 0:00:05]} 18. h3 {[%emt 0:05:34]} ({Not} 18. Nxd3 $2 Nd4 19. Nde1 (19. e5 $2 Bxe5 20. Nfxe5 Bxd1 $19) 19... Bb8 $19) 18... Bh5 {[%emt 0:05:43]} 19. Qd2 {[%emt 0:00:25]} (19. Nxd3 Bc7 20. g4 Bg6 $15) 19... Rfe8 {[%emt 0:02:16]} 20. c5 {[%emt 0:02:16]} ({Don't play} 20. b5 Nd4 21. Nxd4 Qxd4 22. Qxd3 Qxd3 23. Nxd3 Be2 $15) 20... Bf8 {[%emt 0:04:16]} 21. Rb3 {[%emt 0:02:56]} Bg6 {[%emt 0:06:38]} 22. Rxd3 {[%emt 0:03:59][%cal Oe4e5]} Bxe4 {[%emt 0:00:11]} 23. Rxd8 {[%emt 0:01:07]} Rxd8 {[%emt 0:00:06]} 24. Qe3 {[%emt 0:00:33]} Bh7 {[%emt 0:00:27]} 25. Nd2 {[%emt 0:06:56]} a5 {[%emt 0:01:49]} 26. Ne4 {[%emt 0:08:45]} Qb2 {[%emt 0:05:18]} 27. bxa5 {[%emt 0:04:32]} Nxa5 {[%emt 0:01:49]} 28. Nd6 {[%emt 0:00:32] Against Nc4} Bg6 {[%emt 0:01:29]} 29. Nf3 {[%emt 0:01:57] [#] Black must now prevent Ne5.} ({Much worse is} 29. Nd3 Qxa3 30. Nf4 Qxe3 31. fxe3 Bxd6 32. cxd6 Rxd6 $15) 29... Bxd6 {[%emt 0:03:39]} 30. cxd6 {[%emt 0:00:07]} Rxd6 {[%emt 0:00:49]} 31. Qc5 {[%emt 0:03:33]} Qb6 {[%emt 0:00:27]} 32. Rc1 {[%emt 0:00:35]} Qxc5 {[%emt 0:03:19]} (32... Rd1+ $5 33. Kh2 Qxc5 34. Rxc5 Nc6 $11) 33. Rxc5 {[%emt 0:00:04]} Nc6 {[%emt 0:00:23]} 34. Nh4 {[%emt 0:03:46]} Rd1+ {[%emt 0:02:06]} 35. Kh2 {[%emt 0:00:07]} Rd2 {[%emt 0:00:05]} ({Black should play} 35... Bh7 $11) 36. Nxg6 $14 {[%emt 0:01:05]} fxg6 {[%emt 0:00:09][%mdl 4096] Endgame KRB-KRN} 37. Bd5+ {[%emt 0:01:22]} Kf8 {[%emt 0:01:19]} 38. Kg2 {[%emt 0:09:16]} Rd3 {[%emt 0:00:18]} 39. Rb5 {[%emt 0:02:06]} Nd8 {[%emt 0:03:38]} 40. a4 {[%emt 0:02:34]} b6 {[%emt 0:00:23]} 41. Be4 {[%emt 0:32:26]} Rd6 {[%emt 0:30:07] The position is equal.} 42. Rd5 {[%emt 0:02:28]} Rxd5 {[%emt 0:00:00]} 43. Bxd5 $11 {[%emt 0:00:00] KB-KN} Ke7 {[%emt 0:00:00]} 44. Be4 {[%emt 0:00:00]} g5 {[%emt 0:00:00]} 45. Kf3 {[%emt 0:00:00]} Ne6 {[%emt 0:00:00]} 46. Ke3 {[%emt 0:00:00]} Kd6 {[%emt 0:00:00]} 47. Bf5 {[%emt 0:00:00]} Ke5 {[%emt 0:00:00]} 48. Bxe6 {[%emt 0:00:00]} Kxe6 {[%emt 0:00:00]} 49. Ke4 {[%emt 0:00:00]} g6 {[%emt 0:00:00]} 50. f3 {[%emt 0:00:00]} Kd6 {[%emt 0:00:00] [#] aiming for ...Kc5.} 51. Kd4 {[%emt 0:00:00]} Ke6 {[%emt 0:00:00]} 52. Kc4 {[%emt 0:06:29] Strongly threatening Kb5.} Kd6 $1 {[%emt 0:00:00]} 53. Kd4 {[%emt 0:00:00] Weighted Error Value: White=0.06 (flawless) /Black=0.08 (flawless)} 1/2-1/2

[Event "Swedish Championship 2022"]
[Site "Uppsala"]
[Date "2022.07.07"]
[Round "6.2"]
[White "Cramling, Pia"]
[Black "Seo, Jung Min"]
[Result "1/2-1/2"]
[ECO "D38"]
[WhiteElo "2459"]
[BlackElo "2492"]
[Annotator "TA"]
[PlyCount "53"]
[EventDate "2022.07.01"]
[EventType "tourn"]
[EventCountry "SWE"]
[SourceTitle "playchess.com"]
[Source "ChessBase"]
[SourceQuality "1"]
[TimeControl "40/5400+30:1800+30"]

{[%evp 22,53,11,17,13,0,2,6,20,13,25,0,68,44,50,43,54,50,52,52,63,66,54,58,62,33,32,0,56,0,30,0,66,0]} 1. d4 {[%emt 0:00:07]} Nf6 {[%emt 0:00:04]} 2. c4 {[%emt 0:00:10]} e6 {[%emt 0:00:01]} 3. Nf3 {[%emt 0:00:13]} d5 {[%emt 0:00:02]} 4. Nc3 {[%emt 0:00:44]} Bb4 {[%emt 0:00:07]} 5. Bg5 {[%emt 0:00:39]} h6 {[%emt 0:00:14]} 6. Bxf6 {[%emt 0:00:35]} Qxf6 {[%emt 0:00:03]} 7. Qb3 {[%emt 0:01:41]} c5 {[%emt 0:01:50]} 8. cxd5 {[%emt 0:01:22]} exd5 {[%emt 0:00:04]} 9. e3 {[%emt 0:00:23]} O-O {[%emt 0:00:12]} 10. dxc5 {[%emt 0:01:13]} Bxc3+ {[%emt 0:00:09]} 11. Qxc3 {[%emt 0:00:15]} Qxc3+ {[%emt 0:00:03]} 12. bxc3 {[%emt 0:00:06]} Nd7 {[%emt 0:00:14] D38: Queen's Gambit Declined: Ragozin Defence (4 Nf3 Bb4).} 13. c6 {[%emt 0:11:47]} bxc6 {[%emt 0:00:14]} 14. c4 {[%emt 0:00:13]} dxc4 {[%emt 0:04:55] [#] The position is equal.} 15. Bxc4 $146 {[%emt 0:00:09]} ({Predecessor:} 15. Rc1 Nb6 16. Ne5 Be6 17. Bxc4 Nxc4 18. Nxc4 Rfb8 19. O-O Rb4 20. Ne5 Ra4 21. Nxc6 Rxa2 {½-½ (30) Petriashvili,N (2441)-Yilmaz,M (2595) Batumi 2019}) 15... Nb6 {[%emt 0:00:46]} 16. Bb3 {[%emt 0:07:57]} Bf5 {[%emt 0:07:53]} (16... Ba6 $11) 17. Rc1 {[%emt 0:07:40]} (17. Nd4 $5 {[%cal Rd4f5]} Be4 18. f3 $14) 17... Be4 {[%emt 0:02:36]} 18. O-O {[%emt 0:01:04]} Rac8 {[%emt 0:02:58]} 19. Rc5 {[%emt 0:03:32]} Bxf3 {[%emt 0:02:42]} 20. gxf3 {[%emt 0:00:07]} Rc7 {[%emt 0:03:57]} 21. Rfc1 {[%emt 0:06:38]} Rfc8 $1 {[%emt 0:00:04]} 22. f4 {[%emt 0:00:28]} Nd7 {[%emt 0:01:25]} 23. Rf5 {[%emt 0:07:31] White is more active.} Nb6 {[%emt 0:00:58]} 24. Rfc5 {[%emt 0:02:46]} Nd7 {[%emt 0:00:06]} 25. Rf5 {[%emt 0:02:16]} Nb6 $1 {[%emt 0:00:03]} 26. Rfc5 {[%emt 0:00:23]} Nd7 {[%emt 0:00:06]} 27. Rf5 {[%emt 0:01:26] Weighted Error Value: White=0.17 (very precise) /Black=0.11 (very precise)} ({White should try} 27. R5c3 $14) 1/2-1/2

[Event "Swedish Championship 2022"]
[Site "Uppsala"]
[Date "2022.07.07"]
[Round "6.3"]
[White "Hillarp Persson, Tiger"]
[Black "Smith, Axel"]
[Result "1-0"]
[ECO "D33"]
[WhiteElo "2516"]
[BlackElo "2417"]
[Annotator "TA"]
[PlyCount "83"]
[EventDate "2022.07.01"]
[EventType "tourn"]
[EventCountry "SWE"]
[SourceTitle "playchess.com"]
[Source "ChessBase"]
[SourceQuality "1"]
[TimeControl "40/5400+30:1800+30"]

{[%evp 17,82,34,35,36,35,21,26,12,25,0,0,0,14,0,2,0,0,0,7,0,17,11,45,45,42,41,44,41,47,37,31,36,54,28,35,37,80,80,215,216,324,314,325,300,293,284,410,194,190,200,464,462,946,930,789,772,1066,843,1321,1017,1914,1837,29986,29987,29987,29988,29999]} 1. c4 {[%emt 0:00:24]} e6 {[%emt 0:00:33]} 2. d4 {[%emt 0:01:16]} d5 {[%emt 0:00:17]} 3. Nc3 {[%emt 0:00:31]} c5 {[%emt 0:00:03]} 4. cxd5 {[%emt 0:01:07]} exd5 {[%emt 0:00:03]} 5. Nf3 {[%emt 0:00:40]} Nc6 {[%emt 0:00:30]} 6. g3 {[%emt 0:03:26]} Nf6 {[%emt 0:00:17]} 7. Bg2 {[%emt 0:00:07]} cxd4 {[%emt 0:00:18]} 8. Nxd4 {[%emt 0:00:09]} Bc5 {[%emt 0:00:10]} 9. Nxc6 {[%emt 0:27:27]} bxc6 {[%emt 0:00:02]} 10. O-O {[%emt 0:00:11] D33: Tarrasch Defence: 6 g3 sidelines.} O-O {[%emt 0:00:43]} 11. Na4 {[%emt 0:01:34]} Bb6 {[%emt 0:00:27]} 12. b3 {[%emt 0:06:01] White has an edge.} Re8 {[%emt 0:07:00]} 13. Nxb6 {[%emt 0:06:50]} axb6 {[%emt 0:01:20]} 14. Bb2 {[%emt 0:00:21] [#]} Bf5 $146 {[%emt 0:09:11]} ({Predecessor:} 14... h5 15. h4 Bg4 16. Re1 Qe7 17. Qc2 Rac8 18. Rac1 Qe6 19. Qd2 Qf5 20. b4 Ne4 {1-0 (43) Mindlin,A (2430)-Sirosh,I (2400) Chess.com INT 2020}) 15. Re1 {[%emt 0:05:49]} Be4 {[%emt 0:10:20]} 16. f3 {[%emt 0:00:57] [#] aiming for Bxf6.} Bg6 {[%emt 0:00:30]} 17. a4 {[%emt 0:00:42]} c5 {[%emt 0:03:35]} 18. e3 {[%emt 0:01:55] Against d4} Ra7 {[%emt 0:11:44]} 19. Qd2 {[%emt 0:02:14]} h5 {[%emt 0:01:24]} 20. b4 {[%emt 0:05:15]} Qa8 {[%emt 0:32:35]} 21. a5 {[%emt 0:06:49]} bxa5 {[%emt 0:00:15]} 22. bxc5 {[%emt 0:01:15]} a4 {[%emt 0:00:03]} 23. Ra3 {[%emt 0:03:28]} Rb8 {[%emt 0:00:50]} 24. Bd4 {[%emt 0:14:05][%cal Oc5c6]} Rb3 {[%emt 0:04:04]} 25. Rea1 {[%emt 0:01:13]} Rxa3 {[%emt 0:09:04]} 26. Rxa3 {[%emt 0:00:08]} Bf5 {[%emt 0:00:23]} 27. Bf1 {[%emt 0:03:14][%cal Oc5c6] And now c6! would win.} ({But not} 27. c6 Rc7 $11) 27... Qc6 {[%emt 0:00:40] [#] Black cannot hold the game after this.} (27... Rb7 $16) 28. Qb4 $1 $18 {[%emt 0:00:47] Strongly threatening Qb8+.} Bc8 {[%emt 0:04:44]} (28... Ne8 {was worth a try.} 29. Bb5 Qe6 30. Rxa4 Rb7) 29. Bb5 {[%emt 0:02:34] This bishop pair is nice.} Qe6 {[%emt 0:00:01]} 30. Rxa4 {[%emt 0:00:18]} Rxa4 {[%emt 0:00:04]} 31. Qxa4 {[%emt 0:00:17]} h4 {[%emt 0:00:05]} (31... Nh7 {keeps fighting.} 32. Qa8 Qf5) 32. Bf1 {[%emt 0:01:13]} (32. g4 $142) 32... hxg3 {[%emt 0:01:56]} 33. hxg3 {[%emt 0:00:08][%cal Bh2g3,Bg3g4][%mdl 32]} Nh5 $2 {[%emt 0:00:10]} (33... Bd7 34. Qa1 Bc6) 34. g4 {[%emt 0:00:36]} Ng3 {[%emt 0:00:33]} (34... Nf6 $142 35. Qa8 Qe8) 35. Bd3 {[%emt 0:00:16]} Ne4 {[%emt 0:03:30]} 36. fxe4 {[%emt 0:02:54]} Qxg4+ {[%emt 0:00:07]} 37. Kf2 {[%emt 0:00:15]} Qh4+ {[%emt 0:00:25]} 38. Ke2 {[%emt 0:00:22] Qe8+ would kill now.} Bg4+ {[%emt 0:00:47]} 39. Kd2 {[%emt 0:00:10] White threatens Qe8+ and mate.} dxe4 {[%emt 0:00:45]} 40. Qe8+ {[%emt 0:00:45] White mates.} Kh7 {[%emt 0:00:02]} 41. Qxf7 {[%emt 0:31:01][%csl Gd4][%cal Rf7g7]} exd3 {[%emt 0:30:58]} 42. Qxg7# {[%emt 0:01:05] Weighted Error Value: White=0.12 (very precise) /Black=0.55} 1-0

[Event "Swedish Championship 2022"]
[Site "Uppsala"]
[Date "2022.07.07"]
[Round "6.4"]
[White "Hector, Jonny"]
[Black "Carlsson, Ludvig"]
[Result "1-0"]
[ECO "B96"]
[WhiteElo "2441"]
[BlackElo "2399"]
[Annotator "TA"]
[PlyCount "37"]
[EventDate "2022.07.01"]
[EventType "tourn"]
[EventCountry "SWE"]
[SourceTitle "playchess.com"]
[Source "ChessBase"]
[SourceQuality "1"]
[TimeControl "40/5400+30:1800+30"]

{[%evp 15,37,0,0,0,0,0,0,-8,-2,2,2,-5,98,108,166,181,271,260,275,258,402,390,372,355]} 1. e4 {[%emt 0:00:06]} c5 {[%emt 0:00:15]} 2. Nf3 {[%emt 0:00:08]} d6 {[%emt 0:00:18]} 3. d4 {[%emt 0:00:05]} cxd4 {[%emt 0:00:11]} 4. Nxd4 {[%emt 0:00:07]} Nf6 {[%emt 0:00:14]} 5. Nc3 {[%emt 0:00:06]} a6 {[%emt 0:00:27]} 6. Bg5 {[%emt 0:00:20]} e6 {[%emt 0:00:18]} 7. f4 {[%emt 0:00:14]} Nbd7 {[%emt 0:00:20]} 8. Qf3 {[%emt 0:03:35]} Qc7 {[%emt 0:00:49]} 9. Bd3 {[%emt 0:03:34] B96: Sicilian Najdorf: 6 Bg5 e6 7 f4, lines other than 7...Qb6 and 7...Be7.} b5 {[%emt 0:02:21]} 10. a3 {[%emt 0:06:38]} Qb6 {[%emt 0:05:48]} 11. Bh4 $1 {[%emt 0:04:14][%cal Bg5h4,Bh4f2,Bf2g3][%mdl 32] The position is equal.} Bb7 {[%emt 0:07:05]} (11... Qxd4 $2 12. Bf2 Qxf2+ 13. Qxf2 $18) 12. Bf2 {[%emt 0:03:30][%cal Od4e6] Nxe6! is the strong threat.} Qc7 {[%emt 0:01:23] [#]} 13. g4 $146 {[%emt 0:09:16]} ({Predecessor:} 13. O-O Be7 14. Rae1 Nc5 15. Kh1 h5 16. Bh4 Nxd3 17. cxd3 Kf8 18. Qh3 Ng4 19. Bg5 {½-½ (34) Srba,M (2177)-Fajman,P (2225) Czech Republic 2018}) 13... d5 {[%emt 0:06:46]} (13... e5 $11) 14. e5 $36 {[%emt 0:03:50][%mdl 2048] Black is under strong pressure. White is more active.} Nxe5 {[%emt 0:02:18]} 15. fxe5 $18 {[%emt 0:00:26]} Nd7 {[%emt 0:01:28]} (15... Qxe5+ $142 16. Be2 Be7) 16. Bg3 {[%emt 0:10:24] aiming for 0-0.} Nxe5 {[%emt 0:04:45]} 17. Qe2 {[%emt 0:00:30]} Bd6 {[%emt 0:01:07] [#]} (17... Nxd3+ $142 18. Qxd3 (18. cxd3 Qd8 $16) 18... Qd7) 18. Bxb5+ $1 {[%emt 0:02:41][%mdl 512]} Kf8 {[%emt 0:01:51] [#]} (18... axb5 19. Ncxb5) 19. O-O-O $1 {[%emt 0:05:58] Black did not feel at home in the position after the opening.  Weighted Error Value: White=0.02 (flawless) /Black=0.36} 1-0

[Event "Swedish Championship 2022"]
[Site "Uppsala"]
[Date "2022.07.07"]
[Round "6.5"]
[White "Blomqvist, Erik"]
[Black "Jogstad, Martin"]
[Result "1-0"]
[ECO "B12"]
[WhiteElo "2521"]
[BlackElo "2384"]
[Annotator "TA"]
[PlyCount "69"]
[EventDate "2022.07.01"]
[EventType "tourn"]
[EventCountry "SWE"]
[SourceTitle "playchess.com"]
[Source "ChessBase"]
[SourceQuality "1"]
[TimeControl "40/5400+30:1800+30"]

{[%evp 14,68,0,11,56,5,9,-2,-4,-18,32,20,32,29,33,42,25,23,68,56,142,143,193,173,300,294,306,288,352,359,392,367,597,499,625,516,741,732,716,696,1146,849,12795,6610,2425,1343,29987,6489,5397,3037,29987,29988,29994,29995,29995,29993,29999]} 1. e4 {[%emt 0:00:05]} c6 {[%emt 0:00:19]} 2. d4 {[%emt 0:00:25]} d5 {[%emt 0:00:07]} 3. e5 {[%emt 0:00:05]} Bf5 {[%emt 0:00:06]} 4. h4 {[%emt 0:04:41]} h5 {[%emt 0:00:07]} 5. c4 {[%emt 0:00:34]} e6 {[%emt 0:00:06]} 6. Nc3 {[%emt 0:00:11]} dxc4 {[%emt 0:01:44]} 7. Bxc4 {[%emt 0:00:25]} Nd7 {[%emt 0:00:12]} 8. Nge2 {[%emt 0:01:12]} Nh6 {[%emt 0:06:54] B12: Caro-Kann: Advance Variation.} 9. Ng3 {[%emt 0:05:38]} ({White should play} 9. Bg5 $14 Be7 10. Qd2) 9... Bg6 $1 $11 {[%emt 0:00:15]} 10. Be2 {[%emt 0:10:27] [#]} Qb6 $146 {[%emt 0:34:31] The position is equal.} ({Predecessor:} 10... Nf5 11. Nxf5 Bxf5 12. Bxh5 c5 13. Be3 Qb6 14. dxc5 Nxc5 15. Be2 Be7 16. Bb5+ Kf8 {1-0 (29) Rychagov,M (2435)-Maki Uuro,M Stockholm 1990}) 11. a3 {[%emt 0:03:52]} (11. Nxh5 Bxh5 12. Bxh5 Nf5 $17) 11... Rd8 {[%emt 0:05:13]} (11... O-O-O $11 12. Na4 Qc7) 12. Bg5 $14 {[%emt 0:11:44]} Be7 {[%emt 0:01:04]} 13. Na4 $36 {[%emt 0:04:47][%mdl 2048] White is pushing.} Qc7 {[%emt 0:03:19][%cal Od7e5] ...Nxe5! is the strong threat.} 14. Bxe7 {[%emt 0:02:10]} (14. Bxh5 Nxe5 $1 15. Bxg6 Nxg6 $17) (14. Nxh5 Bxh5 15. Bxh5 Nxe5 $1 $17 {[%mdl 512]}) 14... Kxe7 {[%emt 0:01:00]} 15. Qc1 {[%emt 0:05:54]} ({Of course not} 15. Qd2 Nxe5 $1 16. Qb4+ (16. Nxh5 $2 Nf5 $19) 16... c5 17. Nxc5 Nc6 18. Qxb7 Qxb7 19. Nxb7 Rb8 $15) 15... Qa5+ {[%emt 0:16:55]} 16. Nc3 {[%emt 0:00:39]} Qb6 {[%emt 0:00:10] [#] Black is now going downhill.} ({Black should try} 16... Kf8 $14) 17. Qg5+ $1 $16 {[%emt 0:02:43]} Ke8 {[%emt 0:03:52]} (17... Kf8 $16) 18. O-O-O $18 {[%emt 0:02:50]} Nf8 {[%emt 0:03:43]} (18... Qb3 $142 19. Rd2 Nb6) 19. Bxh5 {[%emt 0:03:38]} ({Weaker is} 19. Nxh5 Nf5 $16) 19... Nh7 {[%emt 0:04:06]} 20. Qf4 {[%emt 0:00:28]} Bxh5 {[%emt 0:02:53]} 21. Nxh5 {[%emt 0:00:06]} Nf5 {[%emt 0:00:40]} 22. g4 {[%emt 0:03:59]} Rxd4 $2 {[%emt 0:01:55]} (22... Nxd4 23. Nxg7+ Ke7) 23. Rxd4 {[%emt 0:01:57]} Nxd4 {[%emt 0:00:25]} 24. Rd1 {[%emt 0:05:38]} c5 {[%emt 0:00:07]} 25. Nxg7+ {[%emt 0:00:32]} Ke7 {[%emt 0:02:23] [#]} 26. Nf5+ $1 {[%emt 0:00:37][%mdl 512]} exf5 {[%emt 0:01:14] [#]} (26... Nxf5 27. gxf5) 27. Rxd4 $1 {[%emt 0:00:17][%mdl 512]} Qa6 {[%emt 0:02:49]} (27... Rd8 28. Nd5+) 28. Rd6 {[%emt 0:00:38]} Qf1+ {[%emt 0:00:18]} 29. Rd1 {[%emt 0:00:13][%cal Bd6d1,Bd1d8,Bd8g8][%mdl 32]} Qa6 {[%emt 0:00:12]} 30. gxf5 {[%emt 0:00:58]} (30. Nd5+ $142 Kd7 31. Nb4+ Qd6 32. e6+ Ke7 33. Rxd6 fxe6 {[#]} 34. Nd5+ $1 {[%mdl 512]} Kf8 35. Qh6+ Kf7 36. Rd7+ Ke8 37. Qxe6+ Kf8 38. Qf7#) 30... Rd8 {[%emt 0:00:30]} 31. Nd5+ {[%emt 0:00:39]} Kf8 {[%emt 0:00:31]} 32. e6 {[%emt 0:00:30] White mates.} Kg8 {[%emt 0:02:26]} 33. Ne7+ {[%emt 0:01:01]} Kg7 {[%emt 0:00:26]} 34. Rxd8 {[%emt 0:00:17]} f6 {[%emt 0:00:22]} 35. Rg8# {[%emt 0:00:14] Weighted Error Value: White=0.09 (flawless) /Black=0.85} 1-0

[Event "Swedish Championship 2022"]
[Site "Uppsala"]
[Date "2022.07.08"]
[Round "7.2"]
[White "Johansson, Linus"]
[Black "Hillarp Persson, Tiger"]
[Result "0-1"]
[ECO "E27"]
[WhiteElo "2468"]
[BlackElo "2516"]
[Annotator "TA"]
[PlyCount "74"]
[EventDate "2022.07.01"]
[EventType "tourn"]
[EventCountry "SWE"]
[SourceTitle "playchess.com"]
[Source "ChessBase"]
[SourceQuality "1"]
[TimeControl "40/5400+30:1800+30"]

{[%evp 20,74,14,0,11,-7,37,31,34,5,6,-48,-30,-80,-70,-103,-104,-106,-103,-101,-104,-200,-202,-210,-189,-209,-201,-227,-240,-225,-235,-242,-246,-305,-314,-298,-266,-266,-255,-240,-240,-394,-393,-377,-377,-363,-361,-412,-395,-405,-321,-1590,-760,-4686,-2981,-1408,-1031]} 1. d4 {[%emt 0:00:05]} Nf6 {[%emt 0:00:06]} 2. c4 {[%emt 0:00:04]} e6 {[%emt 0:00:06]} 3. Nc3 {[%emt 0:00:05]} Bb4 {[%emt 0:00:05]} 4. e3 {[%emt 0:00:04]} O-O {[%emt 0:00:08]} 5. a3 {[%emt 0:00:03]} Bxc3+ {[%emt 0:00:08]} 6. bxc3 {[%emt 0:00:03]} b6 {[%emt 0:09:46]} 7. Bd3 {[%emt 0:01:55]} Bb7 {[%emt 0:00:44]} 8. f3 {[%emt 0:00:07]} Ba6 {[%emt 0:00:07]} 9. e4 {[%emt 0:00:08]} Ne8 {[%emt 0:00:20]} 10. Nh3 {[%emt 0:00:16]} Nc6 {[%emt 0:00:09][%cal Bb8c6,Bc6a5,Ba5b3][%mdl 32]} 11. O-O {[%emt 0:01:00]} Na5 {[%emt 0:03:16] E27: Nimzo-Indian: Sämisch: 5...0-0 6 f3.} 12. Qe2 $1 {[%emt 0:00:21]} f6 {[%emt 0:14:49] [#]} 13. a4 $146 {[%emt 0:07:35]} ({Predecessor:} 13. e5 c5 14. Ra2 Rc8 15. Rc2 Qc7 16. Re1 cxd4 17. cxd4 Bxc4 18. Bd2 b5 19. Qe4 f5 20. Qh4 {1-0 (36) Khenkin,I (2632)-Urkedal,F (2414) Tromsoe 2010}) 13... c5 {[%emt 0:04:04] White is slightly better.} 14. Ba3 {[%emt 0:00:09]} Rc8 {[%emt 0:02:57]} 15. Nf2 {[%emt 0:02:29]} (15. e5 $11) 15... Rf7 $1 $15 {[%emt 0:16:10]} 16. dxc5 {[%emt 0:13:27]} (16. Rac1 $11 {keeps the balance.}) 16... Nb3 $17 {[%emt 0:01:45] White is now going downhill.} 17. Ra2 {[%emt 0:07:16]} Nxc5 {[%emt 0:00:36]} 18. Bxc5 {[%emt 0:00:10]} Rxc5 {[%emt 0:00:09]} 19. a5 {[%emt 0:00:04]} bxa5 {[%emt 0:01:31]} 20. Rfa1 {[%emt 0:07:26]} (20. Nd1 $17) 20... Nd6 $19 {[%emt 0:08:59]} 21. Nd1 {[%emt 0:03:02]} Bxc4 {[%emt 0:00:20]} 22. Bxc4 {[%emt 0:00:52]} Nxc4 {[%emt 0:00:10]} (22... Rxc4 23. Rxa5 Rc7 24. Rxa7 $11) 23. Ne3 {[%emt 0:02:52]} Nxe3 {[%emt 0:00:20]} 24. Qxe3 {[%emt 0:00:05]} Qc7 {[%emt 0:00:08]} 25. Qd2 {[%emt 0:06:52]} f5 {[%emt 0:03:09][%cal Bf6f5,Bf5e4,Be4f3,Bf3f2][%mdl 32]} ({Inferior is} 25... Rxc3 26. Rxa5 d6 27. h3 $17) (25... Rh5 26. h3) 26. c4 {[%emt 0:07:55]} fxe4 {[%emt 0:01:06]} (26... Rxc4 $2 27. Qxa5 Rc1+ 28. Kf2 $19) 27. Rxa5 {[%emt 0:00:05]} Rxa5 {[%emt 0:02:24]} ({Not} 27... exf3 $2 28. Rxa7 f2+ 29. Qxf2 Rxf2 30. Rxc7 Rxg2+ 31. Kxg2 $19) 28. Qxa5 {[%emt 0:00:06]} Qxa5 {[%emt 0:00:24]} 29. Rxa5 {[%emt 0:00:03]} exf3 {[%emt 0:00:11][%mdl 4096] Endgame KR-KR} 30. g3 $2 {[%emt 0:00:15] [#]} (30. Rxa7 {might work better.} d5 31. Ra8+ Rf8 32. Ra4) 30... f2+ {[%emt 0:00:40]} 31. Kf1 {[%emt 0:00:06]} Kf8 {[%emt 0:10:17]} ({Avoid the trap} 31... d6 $2 32. Ra6 $19) 32. Rxa7 {[%emt 0:00:09]} Ke8 {[%emt 0:00:45]} 33. c5 {[%emt 0:00:29]} e5 {[%emt 0:07:15][%cal Be6e5,Be5e4][%mdl 32]} 34. Rb7 {[%emt 0:13:57]} Rf6 {[%emt 0:01:52]} 35. Rb8+ $2 {[%emt 0:03:20]} (35. c6 Rxc6 36. Rb5) 35... Ke7 {[%emt 0:00:08] [#] ...e4 is the strong threat. Black is clearly winning.} 36. Rg8 {[%emt 0:00:05]} Rf7 {[%emt 0:00:16]} 37. Rc8 {[%emt 0:01:54]} e4 {[%emt 0:03:56] Weighted Error Value: White=0.82/Black=0.05 (flawless)} 0-1